Cogmind - Beta 13 @@@ ROGUE MODE // 2024.04.06 @ 14:37:32 Player: Rougue Result: Destroyed by D-53 Grenadier with Mini Grenade Launcher Performance ------------- Evolutions (0) 0 Regions Visited (2) 400 Robots Destroyed (15) 75 Value Destroyed (342) 342 Prototype IDs (3) 60 Alien Tech Used (0) 0 Bonus (60) 60 TOTAL SCORE: 937 Bonus ------- Follower Combat Kills 60 Cogmind --------- Core Integrity 0/250 Matter 300/300 Energy 98/100 System Corruption 0% Temperature Cool (0) Movement Core (50) Location -10/Mines Parts ------- > --- POWER (1) -------- (None) > --- PROPULSION (2) --- (None) > --- UTILITY (2) ------ (None) > --- WEAPON (2) ------- (None) > --- INVENTORY (5) ---- Ion Engine Ion Engine Wheel Signal Interpreter Light Cannon Peak State ------------ > --- POWER ------------ Ion Engine > --- PROPULSION ------- Light Treads Light Treads > --- UTILITY ---------- Small Storage Unit Medium Storage Unit > --- WEAPON ----------- Assault Rifle Light Assault Rifle > --- INVENTORY -------- Ion Engine Light Ion Engine Light Nuclear Core Wheel Wheel EM Pulse Gun Grenade Launcher Hammer [Rating: 8] Favorites ----------- Power Ion Engine Engine Ion Engine Propulsion Light Treads Treads Light Treads Utility Large Storage Unit Device Terrain Scanner Storage Large Storage Unit Weapon EM Pulse Gun Energy Gun EM Pulse Gun Ballistic Gun Light Assault Rifle Ballistic Cannon Light Cannon Launcher Grenade Launcher Build | -11 -10 -10 ------- Run | Yrd Mat Min Slots Evolved . | . . . Power . | . . . Propulsion . | . . . Utility . | . . . Weapon . | . . . Parts Attached 27 | 6 17 4 Power 2 | 1 1 . Engine 2 | 1 1 . Core . | . . . Reactor . | . . . Propulsion 5 | 2 3 . Treads 5 | 2 3 . Leg . | . . . Wheel . | . . . Hover . | . . . Flight . | . . . Utility 5 | 1 4 . Device 2 | . 2 . Storage 3 | 1 2 . Processor . | . . . Hackware . | . . . Protection . | . . . Artifact . | . . . Weapon 15 | 2 9 4 Energy Gun 5 | . 4 1 Energy Cannon . | . . . Ballistic Gun 3 | 2 1 . Ballistic Cannon 1 | . 1 . Launcher 6 | . 3 3 Special Weapon . | . . . Impact Weapon . | . . . Slashing Weapon . | . . . Piercing Weapon . | . . . Special Melee Weapon . | . . . Unidentified Prototypes . | . . . Parts Lost 3 | . 1 2 Power 1 | . 1 . Propulsion 1 | . . 1 Utility . | . . . Weapon 1 | . . 1 Highest Loss Streak 2 | . 1 2 To Critical Strikes . | . . . Average Slot Usage (%) 95 | . 94 97 Engine 13 | . 13 13 Treads 27 | . 28 27 Device 8 | . 7 13 Storage 15 | . 15 13 Energy Gun 10 | . 9 11 Ballistic Gun 14 | . 17 . Ballistic Cannon 2 | . . 13 Naked Turns 5 | . . 5 Heaviest Build 39 | 11 39 32 Greatest Support 40 | 40 40 40 Greatest Overweight (x) 1 | . 1 . Average Overweight (x) . | . . . Largest Inventory Capacity 15 | 8 15 15 Average Capacity 12 | 7 12 14 Most Carried 15 | 4 15 15 Average Carried 11 | 2 10 14 Final Capacity 15 | 8 15 5 Final Carried 15 | 4 15 5 Class Distribution -------------------- 100% | Mutant Dominant Class ---------------- Mutant | -10/Materials Mutant | -10/Mines Resources | -11 -10 -10 ----------- Run | Yrd Mat Min Matter Collected 681 | 205 319 157 Remotely . | . . . Salvage Created 388 | . 335 53 Parts 29 | . 28 1 Haulers Intercepted 1 | . 1 . Recyclers Shooed 1 | . 1 . Parts Field Recycled . | . . . Retrieved Matter . | . . . Parts Self-Destructed . | . . . Prevented . | . . . Kills | -11 -10 -10 ------- Run | Yrd Mat Min Combat Hostiles Destroyed 13 | . 11 2 Guns 5 | . 5 . Cannons 1 | . . 1 AOE 7 | . 6 1 Classes Destroyed 4 | . 4 . Hauler 1 | . 1 . Operator 1 | . 1 . Swarmer 6 | . 6 . Grunt 7 | . 5 2 Best Kill Streak 3 | . 3 2 Combat Bots Only 3 | . 3 2 Max Kills in Single Turn 3 | . 3 1 Gunslinging . | . . . Exploded 3 | . 3 1 Melee . | . . . Uniques/NPCs Destroyed . | . . . Combat | -11 -10 -10 -------- Run | Yrd Mat Min Hostile Shots Fired 56 | . 38 18 Missed 11 | . 8 3 Damage Taken 860 | . 316 544 Core 260 | . 61 199 Absorbed by Shields . | . . . Core Remaining (%) 100 | 100 . . Volleys Fired 34 | . 27 7 Largest 2 | . 2 2 Hottest 65 | . 60 65 Shots Fired 61 | . 52 9 Gun 46 | . 46 . Cannon 6 | . . 6 Launcher 9 | . 6 3 Special . | . . . Kinetic 48 | . 42 6 Thermal . | . . . Explosive 9 | . 6 3 Electromagnetic 4 | . 4 . Robot Hit Streak 12 | . 12 1 Robot Miss Streak 3 | . 3 1 Penetration Max . | . . . Secondary Targets . | . . . Shots Hit Robots 33 | . 31 2 Core Hits 28 | . 22 6 Critical Kills . | . . . Critical Parts Destroyed . | . . . Critical Strikes . | . . . Melee Attacks . | . . . Impact . | . . . Slashing . | . . . Piercing . | . . . Sneak Attacks . | . . . Combat Hostiles . | . . . Follow-up Attacks . | . . . Damage Inflicted 762 | . 621 141 Guns 319 | . 319 . Cannons 32 | . . 32 Explosions 411 | . 302 109 Melee . | . . . Ramming . | . . . Kinetic 320 | . 288 32 Thermal . | . . . Explosive 411 | . 302 109 Electromagnetic 31 | . 31 . Impact . | . . . Slashing . | . . . Piercing . | . . . Highest Corruption . | . . . Average Corruption . | . . . Corruption Purged . | . . . Corruption Blocked . | . . . Overload Shots . | . . . Overflow Damage . | . . . Projectiles . | . . . Explosions . | . . . Melee . | . . . Knockbacks . | . . . Impact . | . . . Kinetic . | . . . Secondary . | . . . Self-Inflicted Damage 34 | . 12 22 Shots 2 | . 1 1 Rammed . | . . . Targets Rammed . | . . . Kicked . | . . . Crushed . | . . . Highest Temperature 20 | . 20 15 Average Temperature 8 | . 9 6 Received Heat Transfer 180 | . 129 51 Siege Activations . | . . . Robots Corrupted . | . . . Combat Hostiles . | . . . Parts Fried . | . . . Impact Corruptions . | . . . Robots Melted . | . . . Combat Hostiles . | . . . Parts Melted . | . . . Heat Transferred . | . . . Parts Sabotaged . | . . . Parts Stolen . | . . . Parts Stripped . | . . . Power Chain Reactions . | . . . Alert | -11 -10 -10 ------- Run | Yrd Mat Min Peak Influence 183 | . 183 135 Initial 11 | . . 11 Average 39 | . 29 90 Maximum Alert Level . | . . . Low Security (%) 100 | 100 100 100 Level 1 . | . . . Level 2 . | . . . Level 3 . | . . . Level 4 . | . . . Level 5 . | . . . High Security . | . . . Max Security . | . . . Squads Dispatched 1 | . 1 . Investigation . | . . . Extermination . | . . . Reinforcement 1 | . 1 . Assault . | . . . Garrison . | . . . Intercept . | . . . Searches Triggered . | . . . Construction Impeded . | . . . Haulers Reinforced . | . . . Active Scanning Responses . | . . . Cargo Convoy Interrupts . | . . . Stealth | -11 -10 -10 --------- Run | Yrd Mat Min Distress Signals 3 | . 3 . Communications Jammed . | . . . Distress Signals . | . . . Times Spotted 30 | . 19 11 Peak Tracking Total 12 | . 6 12 Tactical Retreats 1 | . 1 . Traps | -11 -10 -10 ------- Run | Yrd Mat Min Traps Triggered 2 | . 2 . Indirectly . | . . . Trap Hack Attempts . | . . . Triggered . | . . . Disarmed . | . . . Reprogrammed . | . . . Reused . | . . . Traps Extracted . | . . . Installed . | . . . Triggered . | . . . Machines | -11 -10 -10 ---------- Run | Yrd Mat Min Machines Disabled 1 | . 1 . Max in Single Turn 1 | . 1 . Machines Repaired . | . . . Machines Dismantled . | . . . Machines Sabotaged . | . . . Overloaded Fab Kills . | . . . Hacking | -11 -10 -10 --------- Run | Yrd Mat Min Machines Accessed 9 | . 9 . Terminals 7 | . 7 . Fabricators . | . . . Repair Stations . | . . . Recycling Units 2 | . 2 . Scanalyzers . | . . . Garrison Access . | . . . Total Hacks 24 | . 24 . Successful 12 | . 12 . Failed 12 | . 12 . Catastrophic . | . . . Database Lockouts . | . . . Manual 5 | . 5 . Terminals 22 | . 22 . Fabricators . | . . . Repair Stations . | . . . Recycling Units 2 | . 2 . Scanalyzers . | . . . Garrison Access . | . . . Terminal Hacks 10 | . 10 . Prototype ID Bank 1 | . 1 . Alert Level 2 | . 2 . Locate Traps 4 | . 4 . Hauler Manifests 2 | . 2 . Zone Layout 1 | . 1 . Fabricator Hacks . | . . . Repair Station Hacks . | . . . Recycling Unit Hacks 2 | . 2 . Report Inventory 2 | . 2 . Scanalyzer . | . . . Garrison Access Hacks . | . . . Unauthorized Hacks . | . . . Terminals . | . . . Fabricators . | . . . Repair Stations . | . . . Recycling Units . | . . . Scanalyzers . | . . . Garrison Access . | . . . Data Cores Recovered . | . . . Used . | . . . Hacking Detections 5 | . 5 . Full Trace Events . | . . . Feedback Events . | . . . Feedback Blocked . | . . . Robot Schematics Acquired . | . . . Robots Built . | . . . Authchips . | . . . Time . | . . . Total Robot Build Rating . | . . . Part Schematics Acquired . | . . . Parts Built . | . . . Authchips . | . . . Time . | . . . Total Part Build Rating . | . . . Parts Repaired . | . . . Time . | . . . Parts Recycled . | . . . Recycled Matter . | . . . Retrieved Matter . | . . . Retrieved Components . | . . . Parts Scanalyzed . | . . . Part Schematics Acquired . | . . . Parts Damaged . | . . . Bothacking | -11 -10 -10 ------------ Run | Yrd Mat Min Used RIF Installer . | . . . Robots Hacked . | . . . Non-combat . | . . . Combat . | . . . Robot Hacks Applied . | . . . Relay Couplers Released . | . . . Fabnet Peak Effective % . | . . . Robots Rewired . | . . . Allies Hacked . | . . . Hacks Repelled . | . . . Allies | -11 -10 -10 -------- Run | Yrd Mat Min Total Allies 3 | . . 3 Largest Group 3 | . . 3 Highest-Rated Group 40 | . . 40 Highest-Rated Ally 16 | . . 16 Total Orders 2 | . . 2 STAY 2 | . . 2 Ally Attacks 12 | . . 12 Total Damage 98 | . . 98 Kills 2 | . . 2 Allies Corrupted . | . . . Allies Melted . | . . . Intel | -11 -10 -10 ------- Run | Yrd Mat Min Robot Analysis Total . | . . . Derelict Logs Recovered 1 | . . 1 Drone Launches . | . . . Drone Recoveries . | . . . Exploration | -11 -10 -10 ------------- Run | Yrd Mat Min Turns Passed 1823 | 64 1410 349 Spaces Moved 925 | 36 684 205 Core 15 | 5 . 10 Treads 910 | 31 684 195 Legs . | . . . Wheels . | . . . Hover . | . . . Flight . | . . . Fastest Speed 50 | 50 160 50 Average Speed 158 | 144 160 154 Slowest Speed 240 | 160 240 160 Overloaded Moves . | . . . Propulsion Burnouts . | . . . Robots Hopped . | . . . Cave-ins Triggered . | . . . Exploration Rate (%) 49 | 3 94 52 Regions Visited 2 Branch Regions 1 Pre-discovered Areas . | . . . Known Exits Taken . | . . . Unknown Exits Taken 2 | 1 1 . Scrap Searched . | . . . Spaces Dug 39 | . 16 23 Terrain Destroyed 67 | . 44 23 Melee . | . . . Projectile . | . . . AOE 67 | . 44 23 Terrain Rammed . | . . . Walls Destroyed . | . . . Machines Disabled . | . . . Actions | -11 -10 -10 --------- Run | Yrd Mat Min Total 1216 | 45 945 226 Wait 213 | . 203 10 Move 923 | 35 683 205 Hop . | . . . Pick Up 16 | 4 12 . Fast Attach 14 | 6 8 . Attach 1 | . 1 . Detach . | . . . Swap 12 | . 8 4 Drop 3 | . 3 . Fire 34 | . 27 7 Melee . | . . . Ram . | . . . Kick . | . . . Crush . | . . . Escape Stasis . | . . . Rewire . | . . . Trap . | . . . Miscellaneous . | . . . Route ------- -11/Scrapyard -10/Materials (discovered 5 exits: [*Mat x3] / [*Min] / [*Sub]) -10/Mines (discovered 2 exits: [*Mat x2]) History --------- Turn | Location | Event 5 | -11/Scrapyard | Discovered new exit (range 15) 65 | -11/Scrapyard | Entered Materials 313 | -10/Materials | Build established: Mutant 434 | -10/Materials | Discovered new exit (range 6) 571 | -10/Materials | Discovered new exit (range 16) 740 | -10/Materials | Discovered new exit (range 10) 930 | -10/Materials | Discovered new exit (range 9) 1343 | -10/Materials | Discovered new exit (range 9) 1475 | -10/Materials | Entered Mines 1480 | -10/Mines | Met a Derelict bent on vengeance 1550 | -10/Mines | Assisted by bots powering up and referring to "LRC-V3" 1612 | -10/Mines | Learned Materials terminal intel 1707 | -10/Mines | Discovered new exit (range 8) 1789 | -10/Mines | Discovered new exit (range 10) 1801 | -10/Mines | Assembled infested the area 1806 | -10/Mines | Assisted by a Guerilla fighting off Assembled 1819 | -10/Mines | Core integrity fell below 50% 1819 | -10/Mines | Released all parts (5) 1823 | -10/Mines | Core integrity fell below 20% 1824 | -10/Mines | Destroyed by D-53 Grenadier with Mini Grenade Launcher Last Messages --------------- payload. 01811_ D-53 Grenadier unfolds itself. 01811_ Mercenary 1a destroyed. 01812_ HZ-CUH(h) system terminally corrupted. 01812_ T-07 Excavator destroyed. 01813_ as-78406 destroyed. 01813_ as-83877 destroyed. 01813_ Trooper 1b destroyed. 01813_ as-34349 destroyed. 01814_ Lgt. Treads destroyed. 01816_ The unstable cave ceiling collapses. 01817_ Grenade Launcher destroyed. 01818_ as-37864 destroyed. 01819_ Released Grenade Launcher. 01819_ Released Lrg. Storage Unit. 01819_ Released Ion Engine. 01819_ Released Lgt. Treads. 01819_ Released Structural Scanner. 01819_ Extracted 25 matter. 01821_ D-53 Grenadier destroyed. Map ----- +----------------------------------------------------+ | ??????????????????????? #???? | | ??????????????????????? ##???? | | ?????????????????????? ##???? | | ??????????????# ?????## ##???? | | ??????????????## ?????## ##???? | | ??????????????## ??##### ##???? | | ??????????????## ###### ##???? | | ??????????????## ### # ##???? | | ??????????????## % ###??? | | ?????????????### ####?? | | ?????????????### = ####? | | ?????????????## %| [ = #### | | ?????????????## *< ! ### | | ?????????????### %[% [ ## | | ?????????????###### * !/* ## | | ??????????????###### [!] = ## | | ?????????????????### [*!= ## | | ???????????######### * ## | | ???????????########## d ### | | ???????????## ### % ## | | ???????????## ### ##? | | ???????????## ## #?? | | ???????????## ##?? | | ???????????## #?? | | ???????????## ### # ##?? | | ???????????## ### ####@ ##?? | | ???????????## ### ##### ###?? | | ???????????## ### ##### ##??? | | ???????????## = ### ##?## ##??? | | ???????????##[ ! ## ##?## ##??? | | ???????????## < ## ###?## ##??? | | ##?????????##= * ## ###### ##??? | | ###????????## ## ###### ##??? | | ####??????## ##### ##??? | | ###??????## ##### #########??? | | ##??????## ##### #########??? | | ###?###### ##### ##?????????? | | ########## ##?????????? | | # ##### #############????? | | # #### ##################???? | | # ### #### ###?### ###???? | | # ##### ##???? | | #### ##???? | | ##### ## #####???? | | ## ###### ###??????? | | #########?## ###??????? | | ########??### ###??????? | | ##?###????#### ##??????? | | ##?????### ##??????? | | ######### ###??????? | +----------------------------------------------------+ Best States ------------- Heat Dissipation 25 Energy Generation 10 Energy Capacity 250 Matter Stores 300 Matter Capacity 300 Sight Range 16 Terrain Scan Range 14 Terrain Scan Density 10 Evasion (%) 40 Recoil Reduction 2 Item Schematics ----------------- None Robot Schematics ------------------ None Fabricated ------------ Nothing Alien Tech Used ----------------- None Achievements -------------- None Challenges ------------ None Game ------ Seed ImprinterFocalSystem Manual? 0 Play Time 00:16:04 Cumulative 36.0 hours Start 2024.04.06 @ 13:27:54 End 2024.04.06 @ 14:37:32 Sessions 3 Manual Loads 0 Difficulty Rogue Special Mode None Game No. 70 Rogue 70 Adventurer 0 Explorer 0 Win Type - Total 0 Types 0/0/0/0/0/0/0/0/0 Lore% 22 Gallery% 23 Achievement% 23 Wizard Run 0 Options --------- Layout 1 ASCII 0 Keyboard 0 Movement Mouse Keybinds 0 Fullscreen 2 Font 24/Smallcaps Map View 50x35 Zoom Use 0% Tactical HUD 1 Map Filters NONE Filters NONE Steam 1 RUN: d111446d-d655-4206-a6ab-a5076fe46e18